bitfinex-derivatives/quotes_SOLF0:USTF0_20251125
["timestamp","ask_amount","ask_price","bid_price","bid_amount"]
[1764083825916,3.06,133.91,133.85,104.6435]
[1764083826221,3.06,133.91,133.83,106.9649]
[1764083826409,3.06,133.91,133.83,133.0449]
[1764083826605,3.06,133.95,133.86,104.6358]
[1764083826807,3.06,133.95,133.87,104.6277]
[1764083827113,0.04729324,133.92,133.9,0.05194497]
[1764083827703,3.10729324,133.92,133.9,0.05194497]
[1764083829008,0.04729324,133.92,133.9,0.05194497]
[1764083829213,0.04729324,133.92,133.9,2.36194497]
[1764083829406,3.06,133.99,133.9,2.36194497]
[1764083829606,3.06,133.99,133.91,26.08]
[1764083830012,3.06,133.99,133.91,28.39]
[1764083830208,3.06,133.99,133.92,6.7234]
[1764083830408,3.06,133.99,133.94,0.0514788]
[1764083830607,0.05266834,133.97,133.94,2.3614788]
[1764083830802,0.05266834,133.97,133.94,0.0514788]
[1764083831610,3.11266834,133.97,133.94,0.0514788]
[1764083832316,3.06,133.96,133.94,0.0514788]
[1764083832621,0.05266834,133.97,133.94,0.0514788]
[1764083832917,3.11266834,133.97,133.94,0.0514788]
[1764083833214,0.05266834,133.97,133.94,2.3614788]
[1764083833709,0.05266834,133.97,133.95,2.31]
[1764083833915,0.05266834,133.97,133.94,2.3614788]
[1764083834911,0.05266834,133.97,133.95,9.0319]
[1764083835119,0.05266834,133.97,133.95,2.31]
[1764083836510,0.05266834,133.97,133.95,28.39]
[1764083836716,0.05266834,133.97,133.94,0.0514788]
[1764083837123,0.05266834,133.97,133.94,26.1314788]
[1764083837316,0.05266834,133.97,133.94,28.4414788]
[1764083837513,3.05,134.05,133.96,112.81163106]
[1764083837721,3.05,134.05,133.97,2.26]
[1764083838424,3.05,134.05,133.99,2.26]
[1764083838613,0.05087208,134.03,134.01,2.31698496]
[1764083838819,0.04721208,134.03,134.01,22.60813229]
[1764083839023,0.04721208,134.03,134.02,2.26]
[1764083839218,0.04721208,134.03,134.01,0.05381262]
[1764083839426,3.05721208,134.03,134.01,0.05381262]
[1764083839629,0.04721208,134.03,134.01,0.05381262]
[1764083840530,0.04721208,134.03,134.01,2.31381262]
[1764083840719,0.04721208,134.03,134.01,71.03271262]
[1764083840921,0.04721208,134.03,134.01,68.77271262]
[1764083841122,0.04721208,134.03,134.01,90.37381262]
[1764083841321,0.04721208,134.03,134.01,0.05381262]
[1764083841920,0.04721208,134.03,134.01,2.31381262]
[1764083842322,0.04721208,134.03,134.01,0.05381262]
[1764083842531,3.05721208,134.03,134.01,0.05381262]
[1764083843135,3.01,134.01,133.93,2.26]
[1764083843636,3.01,134.01,133.94,2.31]
[1764083843934,3.01,134.05,134.0,6.7194]
[1764083844235,6.7163,134.07,133.97,112.80443106]
[1764083844236,0.04978367,134.04,134.01,2.36633631]
[1764083844737,6.75246859,134.17,134.01,2.36633631]
[1764083845031,3.01,134.17,134.09,5.94443106]
[1764083845238,3.01,134.17,134.09,32.00443106]
[1764083845825,7.24194602,134.23,134.12,2.31040111]
[1764083845826,0.05415222,134.14,134.12,2.31040111]
[1764083846027,3.01,134.2,134.12,8.20443106]
[1764083846233,3.01,134.2,134.13,26.06]
[1764083847033,3.06040213,134.18,134.15,0.05057781]
[1764083847534,0.05040213,134.18,134.15,2.31057781]
[1764083852145,0.05040213,134.18,134.16,2.26]
[1764083852340,0.05040213,134.18,134.17,28.3]
[1764083852549,3.01,134.25,134.17,28.3]
[1764083853246,3.01,134.25,134.17,35.0107]
[1764083853451,3.01,134.28,134.19,2.26]
[1764083853747,3.05889052,134.25,134.22,0.05425514]
[1764083855248,0.04889052,134.25,134.22,0.05425514]
[1764083855544,0.04889052,134.25,134.22,28.35425514]
[1764083855851,0.04889052,134.25,134.23,2.26]
[1764083856244,0.04889052,134.25,134.22,0.05425514]
[1764083856447,3.05889052,134.25,134.22,0.05425514]
[1764083857146,0.04889052,134.25,134.22,0.05425514]
[1764083857544,0.04889052,134.25,134.22,2.31425514]
[1764083857741,3.01,134.35,134.26,2.26]
[1764083857944,3.01,134.35,134.23,113.61784512]
[1764083857945,3.01,134.33,134.23,6.7078]
[1764083858144,3.01,134.29,134.22,2.26]
[1764083858346,3.01,134.29,134.2,22.81752831]
[1764083858545,3.01,134.29,134.21,26.04]
[1764083858747,3.06634227,134.26,134.24,0.05601462]
[1764083859246,4.54634227,134.26,134.17,11.53034512]
[1764083859451,3.01,134.25,134.17,28.28]
[1764083859643,6.7076,134.24,134.17,28.28]
[1764083859845,3.01,134.24,134.17,28.28]
[1764083860147,3.01,134.24,134.17,6.7108]
[1764083860349,0.05460927,134.22,134.19,2.31371935]
[1764083860552,0.05460927,134.22,134.19,0.05371935]
[1764083860748,3.06460927,134.22,134.19,0.05371935]
[1764083860943,0.05460927,134.22,134.19,0.05371935]
[1764083861552,3.06460927,134.22,134.19,0.05371935]
[1764083862160,3.01,134.21,134.19,0.05371935]
[1764083862547,3.01,134.18,134.11,2.26]
[1764083862855,9.7213,134.17,134.08,116.04204512]
[1764083863052,9.7213,134.17,134.09,26.02]
[1764083863255,3.01,134.17,134.09,26.02]
[1764083863453,9.7228,134.14,134.07,6.7158]
[1764083863757,9.7228,134.14,134.03,185.28189164]
[1764083863758,3.01,134.12,134.03,185.28189164]
[1764083864159,3.01,134.12,134.04,2.37]
[1764083864355,3.01,134.12,134.05,2.37]
[1764083864550,3.01,134.12,134.05,9.0865]
[1764083864752,3.06100731,134.1,134.07,0.04853119]
[1764083865064,0.05100731,134.1,134.07,0.04853119]
[1764083865453,0.05100731,134.1,134.08,2.37]
[1764083865654,0.05100731,134.1,134.07,0.04853119]
[1764083865955,3.06100731,134.1,134.07,0.04853119]
[1764083867159,3.01,134.08,134.07,0.04853119]
[1764083867659,3.01,134.08,134.03,185.28189164]
[1764083868361,3.01,134.08,134.0,9.0894]
[1764083868661,0.05166297,134.05,134.03,0.0523129]
[1764083870464,2.96166297,134.05,134.03,0.0523129]
[1764083870862,2.96166297,134.05,133.97,26.04]
[1764083871558,2.96166297,134.05,133.99,104.5319]
[1764083871753,0.05166297,134.05,134.01,106.9883]
[1764083871955,0.05166297,134.05,134.03,6.7177]
[1764083872469,0.05166297,134.05,134.03,113.6904]
[1764083872763,0.05166297,134.05,134.03,9.1877]
[1764083872956,0.05166297,134.05,134.03,6.7177]
[1764083873153,2.96166297,134.05,134.02,0.00174024]
[1764083879466,3.18,134.03,133.97,6.7209]
[1764083879861,3.18,134.03,133.98,6.7204]
[1764083880254,3.18,134.03,133.95,22.4770515]
[1764083880463,3.18,133.99,133.98,0.05058078]
[1764083880664,3.18,133.99,133.98,0.00058078]
[1764083880865,3.18,134.04,133.98,0.00058078]
[1764083881471,3.18,134.07,134.0,2.57]
[1764083881660,0.04895185,134.05,134.01,2.57]
[1764083881860,0.05039605,134.04,134.02,9.2882]
[1764083882166,0.05612445,134.04,134.02,9.2882]
[1764083882463,3.23612445,134.04,133.98,26.04]
[1764083882662,0.05612445,134.04,133.98,28.61]
[1764083882868,0.05612445,134.04,134.02,9.2884]
[1764083883366,3.23612445,134.04,133.98,9.2904]
[1764083883565,0.05612445,134.04,133.98,9.2904]
[1764083883759,0.05612445,134.04,133.98,2.57]
[1764083883966,0.05612445,134.04,134.0,2.57]
[1764083884559,3.18,134.11,134.04,104.4948]
[1764083884764,3.18,134.16,134.05,2.57]
[1764083885074,3.18,134.14,134.01,133.1287]
[1764083885266,3.18,134.12,134.01,28.61]
[1764083885565,113.67794512,134.16,134.03,2.57]
[1764083885566,3.18,134.11,134.03,2.57]
[1764083885769,3.18,134.11,134.01,88.04]
[1764083885965,3.23278701,134.08,134.06,0.05589596]
[1764083886158,3.23646044,134.08,134.06,0.05589596]
[1764083886761,0.05646044,134.08,134.06,0.05589596]
[1764083888258,3.23646044,134.08,134.06,0.05589596]
[1764083890764,0.05646044,134.08,134.06,0.05589596]
[1764083891169,0.05646044,134.08,134.06,2.62589596]
[1764083892470,0.05646044,134.08,134.06,0.05589596]
[1764083893064,0.05646044,134.08,134.06,2.62589596]
[1764083893465,9.8924,134.15,134.07,9.2859]
[1764083893664,3.18,134.15,134.07,2.57]
[1764083894171,9.8936,134.12,134.06,26.04]
[1764083894366,0.04869584,134.1,134.08,0.05144989]
[1764083894762,3.22869584,134.1,134.08,0.05144989]
[1764083894966,3.22869584,134.1,134.03,71.27034512]
[1764083894967,3.22869584,134.1,134.03,2.62]
[1764083895576,3.18,134.09,134.0,28.66]
[1764083895871,0.05223889,134.06,134.03,2.67410595]
[1764083896561,0.05223889,134.06,134.04,2.62]
[1764083898267,3.04,134.15,134.05,2.57]
[1764083898983,3.04,134.14,134.05,28.61]
[1764083899171,3.04,134.16,134.06,2.57]
[1764083899371,0.05169616,134.12,134.1,0.04940722]
[1764083899878,0.05169616,134.12,134.1,2.61940722]
[1764083901273,107.4217,134.19,134.1,2.61940722]
[1764083901580,107.4217,134.19,134.11,90.61]
[1764083901773,6.7122,134.15,134.12,2.57]
[1764083901972,104.3876,134.18,134.12,2.57]
[1764083902173,104.4103,134.15,134.09,2.57]
[1764083902384,6.76658804,134.13,134.11,0.05727391]
[1764083903383,104.4428,134.11,134.0,2.57]
[1764083903678,104.4573,134.09,134.02,2.57]
[1764083903884,6.7183,134.03,133.99,2.57]
[1764083904079,104.4918,134.05,133.99,2.57]
[1764083904286,3.04,134.04,133.99,2.57]
[1764083904586,0.05346033,134.03,134.0,0.05111237]
[1764083904875,104.56126033,134.03,134.0,0.05111237]
[1764083905072,107.60126033,134.03,134.0,0.05111237]
[1764083905273,6.7186,134.02,134.0,0.05111237]
[1764083905471,3.04,134.01,134.0,0.05111237]
[1764083905775,3.04,134.01,133.95,86.45082646]
[1764083905776,107.5599,134.01,133.95,24.45082646]
[1764083905977,6.7205,133.99,133.95,24.45082646]
[1764083906477,6.7207,133.98,133.95,24.45082646]
[1764083906782,107.63891034,133.98,133.95,0.05163847]
[1764083906976,107.63891034,133.98,133.87,28.61]
[1764083906977,104.5745,133.94,133.87,28.61]
[1764083907282,9.7633,133.93,133.87,2.57]
[1764083907673,3.04,133.93,133.87,2.57]
[1764083907874,0.05329936,133.91,133.87,2.57]
[1764083908281,0.05329936,133.91,133.87,24.75789825]
[1764083908478,0.05329936,133.91,133.88,2.57]
[1764083908671,0.05329936,133.91,133.88,64.57]
[1764083908872,0.05329936,133.91,133.89,2.57]
[1764083909072,26.04,134.01,133.89,2.57]
[1764083909073,3.04,134.01,133.93,2.51]
[1764083909680,6.7203,133.99,133.93,2.51]
[1764083910185,0.04751838,133.97,133.95,0.05290507]
[1764083910685,0.04751838,133.97,133.95,2.56290507]
[1764083910881,0.04751838,133.97,133.95,0.05290507]
[1764083912081,0.04751838,133.97,133.95,2.56290507]
[1764083912684,0.04751838,133.97,133.95,0.05290507]
[1764083913075,0.04751838,133.97,133.95,2.56290507]
[1764083913776,107.5067,134.08,133.98,2.51]
[1764083913976,3.04,134.04,133.93,104.5786]
[1764083914184,3.04,134.04,133.96,2.51]
[1764083914586,3.04,134.08,133.99,9.2298]
[1764083914780,3.04,134.08,134.0,2.51]
[1764083914976,0.05684464,134.05,134.03,0.0540795]
[1764083915285,0.05684464,134.05,134.03,2.5640795]
[1764083915786,0.05684464,134.05,134.03,0.0540795]
[1764083917896,0.05684464,134.05,134.03,2.5640795]
[1764083921090,3.09684464,134.05,134.03,0.0540795]
[1764083921692,0.05684464,134.05,134.03,0.0540795]
[1764083921989,3.09684464,134.05,134.03,0.0540795]
[1764083922291,3.09684464,134.05,133.95,104.5603]
[1764083922292,6.719,134.02,133.95,2.51]
[1764083922593,6.719,134.02,133.96,28.55]
[1764083922793,6.7192,134.01,133.96,28.55]
[1764083923284,0.04916392,134.0,133.97,0.05547359]
[1764083924196,0.04916392,134.0,133.97,2.56547359]
[1764083926679,9.7604,133.99,133.97,0.05547359]
[1764083926881,3.04,133.98,133.89,91.99]
[1764083927087,3.04,133.98,133.9,26.04]
[1764083927289,3.04,133.98,133.89,91.99]
[1764083927486,3.17,133.96,133.89,2.51]
[1764083927686,3.17,133.99,133.9,9.2344]
[1764083927893,0.05724465,133.96,133.91,2.51]
[1764083929193,3.22724465,133.96,133.91,2.51]
[1764083930488,9.94904465,133.96,133.89,62.0]
[1764083930683,9.94904465,133.96,133.88,32.7853]
[1764083931102,3.22724465,133.96,133.89,9.2349]
[1764083931289,3.22724465,133.96,133.89,2.51]
[1764083932498,0.05724465,133.96,133.89,2.51]
[1764083932801,0.05724465,133.96,133.92,2.51]
[1764083933001,0.05724465,133.96,133.93,107.0871]
[1764083933196,3.17,134.02,133.97,6.7205]
[1764083933499,3.17,134.02,133.97,2.51]
[1764083933694,3.17,134.05,133.97,2.51]
[1764083933896,3.17,134.05,133.98,2.51]
[1764083934298,0.05229559,134.03,134.0,0.04801483]
[1764083934596,3.22229559,134.03,134.0,0.04801483]
[1764083936190,0.05229559,134.03,134.0,0.04801483]
[1764083937489,3.22229559,134.03,134.0,0.04801483]
[1764083938291,0.05229559,134.03,134.0,0.04801483]
[1764083938898,3.22229559,134.03,134.0,0.04801483]
[1764083939395,0.05229559,134.03,134.0,0.04801483]
[1764083940205,3.22229559,134.03,134.0,0.04801483]
[1764083940696,3.22229559,134.03,133.92,107.1453]
[1764083940697,3.17,134.01,133.92,107.1453]
[1764083940994,3.17,134.01,133.93,2.56]
[1764083941593,3.17,133.96,133.87,133.41314047]
[1764083941792,0.05609832,133.93,133.89,2.56]
[1764083942198,3.22609832,133.93,133.85,2.56]
[1764083942402,3.22609832,133.93,133.79,104.6885]
[1764083942403,3.17,133.92,133.82,28.62]
[1764083942602,0.05720512,133.88,133.82,133.2847]
[1764083942800,0.05720512,133.88,133.83,2.56]
[1764083943002,0.05720512,133.88,133.84,2.56]
[1764083943200,0.05720512,133.88,133.85,6.7269]
[1764083943400,0.05720512,133.88,133.86,2.56]
[1764083943603,3.17,133.94,133.87,2.56]
[1764083943800,3.17,133.94,133.9,6.7242]
[1764083944109,29.23,134.01,133.92,2.56]
[1764083944404,3.17,134.06,133.96,2.56]
[1764083944702,0.05475408,134.02,134.0,0.05306094]
[1764083944904,3.22475408,134.02,134.0,0.05306094]
[1764083945406,0.05475408,134.02,134.0,0.05306094]
[1764083945902,3.22475408,134.02,134.0,0.05306094]
[1764083946102,3.27475408,134.02,134.0,0.05306094]
[1764083947003,0.05475408,134.02,134.0,0.05306094]
[1764083948206,0.05475408,134.02,134.0,2.61306094]
[1764083950210,0.05475408,134.02,134.0,0.05306094]
[1764083951506,0.05475408,134.02,134.0,2.61306094]
[1764083951704,3.27475408,134.02,134.0,0.05306094]
[1764083952408,3.22,134.01,133.93,26.96]
[1764083952609,3.22,134.04,133.95,8.55152854]
[1764083952809,3.22,134.03,133.95,8.55152854]
[1764083953413,0.05093974,134.0,133.96,2.62]
[1764083954214,3.22,133.98,133.89,2.62]
[1764083954405,0.05481836,133.95,133.89,28.66]
[1764083954605,0.05481836,133.95,133.85,22.02980664]
[1764083954606,3.27481836,133.95,133.87,5.93152854]
[1764083954816,0.05007822,133.92,133.88,2.62]
[1764083955213,3.27007822,133.92,133.85,25.44720032]
[1764083955414,3.22,133.92,133.85,2.62]
[1764083955614,104.5732,133.95,133.85,2.62]
[1764083955615,3.27620954,133.9,133.85,2.62]
[1764083955813,3.27620954,133.9,133.83,5.93152854]
[1764083956019,3.27620954,133.9,133.84,2.62]
[1764083957111,3.27620954,133.9,133.84,25.59525007]
[1764083957312,10.00100954,133.9,133.81,2.62]
[1764083957512,0.05644587,133.87,133.82,2.62]
[1764083957812,0.05644587,133.87,133.83,2.62]
[1764083958017,0.05644587,133.87,133.84,2.62]
[1764083958405,0.05644587,133.87,133.82,25.19735838]
[1764083958613,3.08644587,133.87,133.82,25.19735838]
[1764083959313,0.05644587,133.87,133.83,2.62]
[1764083959514,3.03,133.86,133.79,2.62]
[1764083959815,0.05038895,133.84,133.77,2.62]
[1764083960114,0.05038895,133.84,133.8,2.62]
[1764083960314,0.05038895,133.84,133.81,8.55152854]
[1764083960616,3.03,133.9,133.83,6.7279]
[1764083960815,3.03,133.9,133.83,2.62]
[1764083961214,3.03,133.93,133.86,2.62]
[1764083961416,3.03,133.93,133.83,107.2757]
[1764083961617,3.03,133.93,133.83,2.62]
[1764083961817,0.05354909,133.89,133.87,0.04938445]
[1764083962023,0.05647378,133.89,133.87,0.04938445]
[1764083962814,0.05647378,133.89,133.88,2.62]
[1764083963517,0.05647378,133.89,133.87,2.66938445]
[1764083964023,0.05647378,133.89,133.87,9.39518445]
[1764083964522,3.03,133.94,133.9,6.7243]
[1764083965018,3.03,133.94,133.88,6.7254]
[1764083965516,3.08317644,133.92,133.9,0.05228167]
[1764083965821,3.08648498,133.92,133.9,0.05228167]
[1764083966725,0.05648498,133.92,133.9,0.05228167]
[1764083968218,0.05648498,133.92,133.9,15.32811021]
[1764083968427,3.03,133.98,133.94,2.56]
[1764083968616,3.03,134.02,133.95,107.1245]
[1764083968924,3.03,134.02,133.97,6.7209]
[1764083969120,3.03,134.02,133.94,62.0]
[1764083969315,0.04998417,133.99,133.97,0.047829]
[1764083969523,3.07998417,133.99,133.97,0.047829]
[1764083969816,3.03,133.98,133.88,34.60152854]
[1764083970016,3.03,134.02,133.94,2.61]
[1764083970421,3.03,134.02,133.95,2.61]
[1764083970721,0.04804305,134.0,133.97,0.0554827]
[1764083971021,3.03,133.99,133.97,0.0554827]
[1764083972424,0.04804305,134.0,133.98,9.3304]
[1764083972620,3.03,134.07,133.99,107.1445]
[1764083973023,3.03,134.07,134.01,6.7189]
[1764083973318,3.03,134.07,133.99,2.61]
[1764083973520,3.03,134.04,133.97,5.93152854]
[1764083973715,3.08549603,134.04,133.99,0.05632224]
[1764083974112,3.08549603,134.04,133.99,2.66632224]
[1764083974726,3.08549603,134.04,133.99,0.05632224]
[1764083975526,3.03,134.01,133.99,0.05632224]
[1764083975719,3.03,134.01,133.93,5.93152854]
[1764083976028,9.7497,134.0,133.93,12.65442854]
[1764083976234,3.03,133.99,133.88,2.61]
[1764083976417,9.7512,133.97,133.88,107.227]
[1764083976727,0.05205212,133.94,133.91,0.05460745]
[1764083976927,3.08205212,133.94,133.91,0.05460745]
[1764083978228,0.05205212,133.94,133.88,2.61]
[1764083978431,3.03,133.97,133.88,2.61]
[1764083978823,6.7217,133.96,133.89,6.7249]
[1764083979131,0.05037643,133.94,133.91,0.05032001]
[1764083979428,0.05037643,133.94,133.92,2.61]
[1764083979729,0.05037643,133.94,133.91,2.66032001]
[1764083980225,0.05037643,133.94,133.91,0.05032001]
[1764083981229,0.05037643,133.94,133.91,2.66032001]
[1764083981425,0.05037643,133.94,133.91,0.05032001]
[1764083981929,0.05037643,133.94,133.91,9.38422001]
[1764083982129,0.05037643,133.94,133.92,2.61]
[1764083982333,3.08037643,133.94,133.91,0.05032001]
[1764083984637,0.05037643,133.94,133.92,2.61]
[1764083985026,3.03,133.99,133.92,2.61]
[1764083985027,3.03,133.99,133.94,6.7224]
[1764083985231,3.03,133.99,133.92,28.67]
[1764083985530,9.7501,133.99,133.92,28.67]
[1764083985929,3.03,133.96,133.94,0.0555691]
[1764083986227,9.7517,133.96,133.94,0.0555691]
[1764083987234,3.02,133.95,133.94,0.0555691]
[1764083988929,3.02,133.95,133.88,25.2657625]
[1764083989629,3.02,133.95,133.89,2.6]
[1764083990136,0.05197413,133.93,133.91,0.05002231]
[1764083992136,3.07197413,133.93,133.91,0.05002231]
[1764083994731,0.05197413,133.93,133.91,0.05002231]
[1764083998339,3.07197413,133.93,133.91,0.05002231]
[1764083999340,9.79507413,133.93,133.91,0.05002231]
[1764083999544,3.12,133.92,133.91,0.05002231]
[1764084000040,6.7242,133.91,133.85,9.3267]
[1764084000335,3.12,133.92,133.81,2.61]
[1764084000537,3.12,133.92,133.83,2.61]
[1764084000737,3.12,133.92,133.85,2.61]
[1764084001044,3.12,133.89,133.82,25.06180675]
[1764084001234,9.8455,133.88,133.82,25.06180675]
[1764084001433,3.17400319,133.87,133.84,0.04820752]
[1764084002329,3.12,133.86,133.84,0.04820752]
[1764084002944,3.12,133.85,133.84,0.04820752]
[1764084003138,0.05400319,133.87,133.84,0.04820752]
[1764084003333,0.05400319,133.87,133.84,9.38560752]
[1764084003738,0.05400319,133.87,133.84,2.65820752]
[1764084004836,3.17400319,133.87,133.84,0.04820752]
[1764084005040,0.05400319,133.87,133.84,2.65820752]
[1764084005840,0.05400319,133.87,133.85,2.61]
[1764084006230,3.12,133.92,133.86,2.61]
[1764084006434,3.12,133.96,133.88,2.61]
[1764084007044,3.12,133.94,133.85,2.61]
[1764084007240,0.0523878,133.91,133.85,2.61]
[1764084007545,3.12,133.9,133.88,0.05170331]
[1764084007840,0.0523878,133.91,133.88,0.05170331]
[1764084008034,0.0523878,133.91,133.88,9.38720331]
[1764084008238,0.0523878,133.91,133.88,2.66170331]
[1764084008440,3.1723878,133.91,133.88,0.05170331]
[1764084009038,0.0523878,133.91,133.88,0.05170331]
[1764084010039,3.1723878,133.91,133.88,0.05170331]
[1764084010344,3.12,133.89,133.88,0.05170331]
[1764084012342,3.12,133.89,133.82,22.44229106]
[1764084012644,3.12,133.89,133.81,2.61]
[1764084013247,0.05687233,133.86,133.82,2.61]
[1764084013843,0.05687233,133.86,133.83,9.338]
[1764084014143,0.05687233,133.86,133.84,2.61]
[1764084014350,3.12,133.91,133.84,9.3371]
[1764084014646,3.12,133.91,133.81,2.61]
[1764084015044,6.7258,133.88,133.82,6.7285]
[1764084015347,3.17080123,133.86,133.84,0.04824033]
[1764084015551,3.17588612,133.86,133.84,0.04824033]
[1764084016047,9.90248612,133.86,133.84,0.04824033]
[1764084016243,3.12,133.85,133.78,2.61]
[1764084016445,3.12,133.85,133.78,24.78142397]
[1764084016648,3.12,133.82,133.76,1.87033]
[1764084016957,3.12,133.81,133.76,1.87033]
[1764084017257,2.94,133.78,133.69,2.61]
[1764084017749,2.99359056,133.75,133.72,0.02172297]
[1764084018145,2.94,133.73,133.66,2.61]
[1764084019358,0.05247646,133.71,133.66,2.61]
[1764084019954,0.05247646,133.71,133.67,2.61]
[1764084020754,0.05247646,133.71,133.63,2.61]
[1764084020755,2.99247646,133.71,133.63,2.61]
[1764084020954,6.7348,133.7,133.63,2.61]
[1764084021258,0.05737225,133.68,133.63,2.61]
[1764084021557,6.7329,133.74,133.64,2.61]
[1764084021757,107.6652,133.75,133.64,2.61]
[1764084022256,107.6857,133.72,133.64,2.61]
[1764084022463,107.6935,133.71,133.64,2.61]
[1764084022652,0.04929796,133.69,133.66,0.05443469]
[1764084023343,6.78469796,133.69,133.66,0.05443469]
[1764084023651,2.98929796,133.69,133.66,0.05443469]
[1764084023854,107.7286,133.67,133.58,92.13]
[1764084024057,107.7286,133.67,133.59,28.63]
[1764084024354,107.7286,133.67,133.6,2.55]
[1764084024355,2.94,133.67,133.6,2.55]
[1764084024556,104.7568,133.71,133.6,2.55]
[1764084024557,6.7358,133.68,133.6,2.55]
[1764084024947,0.0552753,133.65,133.6,2.55]
[1764084025151,0.0552753,133.65,133.61,2.55]
[1764084026256,0.0552753,133.65,133.62,166.8224]
[1764084026460,2.94,133.74,133.64,2.49]
[1764084027457,0.04819167,133.7,133.68,0.05356791]
[1764084028054,2.98819167,133.7,133.68,0.05356791]
[1764084029150,2.98819167,133.7,133.64,2.49]
[1764084029151,2.98819167,133.7,133.62,2.49]
[1764084029347,2.94,133.7,133.62,2.49]
[1764084029561,2.94,133.7,133.6,22.89293444]
[1764084029862,2.94,133.7,133.61,62.0]
[1764084030057,0.05061122,133.67,133.61,62.0]
[1764084030366,0.05061122,133.67,133.6,9.2294]
[1764084030555,0.05061122,133.67,133.61,107.3188]
[1764084030756,2.94,133.73,133.66,2.49]
[1764084030964,2.94,133.73,133.66,9.2264]
[1764084031167,2.94,133.79,133.67,2.49]
[1764084031564,2.94,133.79,133.69,2.49]
[1764084031863,2.9951924,133.75,133.73,0.05603423]
[1764084032066,0.0530344,133.75,133.73,0.05597683]
[1764084033668,2.9930344,133.75,133.73,0.05597683]
[1764084036664,2.9930344,133.75,133.66,68.7363]
[1764084036864,2.94,133.75,133.66,68.7363]
[1764084037373,2.94,133.73,133.65,2.49]
[1764084037558,2.94,133.73,133.61,114.14202848]
[1764084037559,2.94,133.71,133.61,2.49]
[1764084037773,0.05536125,133.69,133.61,2.49]
[1764084038181,2.99536125,133.69,133.61,2.49]
[1764084039089,2.94,133.65,133.6,22.95646522]
[1764084039275,0.05205959,133.64,133.58,92.07]
[1764084039678,0.05205959,133.64,133.58,25.42691165]
[1764084039879,6.78995959,133.64,133.58,32.16741165]
[1764084040080,6.78995959,133.64,133.58,25.42691165]
[1764084040276,6.78995959,133.64,133.58,2.49]
[1764084040483,9.72995959,133.64,133.57,6.741]
[1764084040686,9.72995959,133.64,133.55,28.59]
[1764084040687,2.99205959,133.64,133.55,139.43620876]
[1764084040882,0.05361749,133.61,133.59,9.23]
[1764084041184,0.05361749,133.61,133.59,2.49]
[1764084041982,0.05361749,133.61,133.58,6.7405]
[1764084042185,0.05361749,133.61,133.58,31.65975272]
[1764084042382,2.99361749,133.61,133.55,5.97220876]
[1764084042583,2.99361749,133.61,133.53,2.49]
[1764084042892,6.7399,133.6,133.53,2.49]
[1764084043183,9.73782846,133.58,133.53,2.49]
[1764084043376,2.94,133.57,133.51,62.0]
[1764084043976,2.94,133.57,133.5,25.49454741]
[1764084044282,2.99045704,133.55,133.5,2.49]
[1764084044684,0.05045704,133.55,133.49,2.49]
[1764084045088,2.94,133.62,133.53,2.49]
[1764084045279,2.94,133.62,133.55,6.742]
[1764084045481,2.94,133.62,133.54,2.49]
[1764084046180,0.05039239,133.59,133.57,0.05032137]
[1764084046784,2.94,133.58,133.57,0.05032137]
[1764084047296,3.2,133.56,133.49,25.32773765]
[1764084048198,3.2,133.56,133.5,2.55]
[1764084048379,0.05080174,133.54,133.52,2.55]
[1764084048584,0.05367002,133.54,133.52,2.55]
[1764084048782,0.05367002,133.54,133.53,2.55]
[1764084048994,3.2,133.59,133.53,2.55]
[1764084049290,3.2,133.59,133.53,9.293]
[1764084049495,3.2,133.62,133.53,2.55]